fUST/lending_fUST_20250628
["ID","MTS","AMOUNT","RATE_DAILY","PERIOD"]
[368179435,1751051454911,-460.0,0.00019726,2]
[368179436,1751051454920,-2172.27,0.00019726,2]
[368179437,1751051454930,-460.0,0.00019726,2]
[368179438,1751051454939,-5152.74,0.00019726,2]
[368179439,1751051454949,-460.0,0.00019726,2]
[368179440,1751051454959,-460.0,0.00019726,2]
[368179441,1751051454967,-2353.85,0.00019726,2]
[368179442,1751051454977,-460.0,0.00019726,2]
[368179443,1751051454987,-460.0,0.00019726,2]
[368179444,1751051454997,-460.0,0.00019726,2]
[368179445,1751051455006,-460.0,0.00019726,2]
[368179446,1751051455015,-460.0,0.00019726,2]
[368179447,1751051455025,-460.0,0.00019726,2]
[368179448,1751051455035,-1031.13,0.00019726,2]
[368179449,1751051455044,-460.0,0.00019726,2]
[368179450,1751051455054,-460.0,0.00019726,2]
[368179451,1751051455063,-777.81,0.00019726,2]
[368179452,1751051455073,-460.0,0.00019726,2]
[368179453,1751051455082,-460.0,0.00019726,2]
[368179454,1751051455091,-460.0,0.00019726,2]
[368179455,1751051455100,-337.808917,0.00019726,2]
[368179456,1751051455110,-460.0,0.00019726,2]
[368179457,1751051455119,-151.0,0.00019726,2]
[368179458,1751051455129,-460.0,0.00019726,2]
[368179459,1751051455206,-565.72,0.00019726,2]
[368179460,1751051455224,-337.808917,0.00019726,2]
[368179461,1751051455233,-266.807859,0.00019726,2]
[368179462,1751051455244,-460.0,0.00019726,2]
[368179463,1751051455253,-334.00951638,0.00019726,2]
[368179464,1751051455262,-460.0,0.00019726,2]
[368179465,1751051455271,-460.0,0.00019726,2]
[368179466,1751051455280,-460.0,0.00019726,2]
[368179467,1751051455289,-460.0,0.00019726,2]
[368179468,1751051455298,-460.0,0.00019726,2]
[368179469,1751051455307,-6789.07,0.00019726,2]
[368179470,1751051455316,-460.0,0.00019726,2]
[368179471,1751051455325,-460.0,0.00019726,2]
[368179472,1751051455335,-2920.48,0.00019726,2]
[368179473,1751051455345,-460.0,0.00019726,2]
[368179474,1751051455354,-460.0,0.00019726,2]
[368179475,1751051455363,-460.0,0.00019726,2]
[368179476,1751051455372,-460.0,0.00019726,2]
[368179477,1751051455382,-901.26,0.00019726,2]
[368179478,1751051455391,-2375.76,0.00019726,2]
[368179479,1751051455400,-1778.83,0.00019726,2]
[368179480,1751051455410,-2146.57,0.00019726,2]
[368179481,1751051455419,-460.0,0.00019726,2]
[368179482,1751051455429,-460.0,0.00019726,2]
[368179483,1751051455438,-917.64,0.00019726,2]
[368179484,1751051455447,-460.0,0.00019726,2]
[368179485,1751051455457,-550.12,0.00019726,2]
[368179486,1751051455466,-1025.56,0.00019726,2]
[368179487,1751051455478,-460.0,0.00019726,2]
[368179488,1751051455488,-460.0,0.00019726,2]
[368179489,1751051455498,-460.0,0.00019726,2]
[368179490,1751051455507,-460.0,0.00019726,2]
[368179491,1751051455516,-460.0,0.00019726,2]
[368179492,1751051455525,-1044.81,0.00019726,2]
[368179493,1751051455534,-151.0,0.00019726,2]
[368179494,1751051455544,-483.65,0.00019726,2]
[368179495,1751051455553,-945.34,0.00019726,2]
[368179496,1751051455563,-151.0,0.00019726,2]
[368179497,1751051455574,-460.0,0.00019726,2]
[368179498,1751051455583,-460.0,0.00019726,2]
[368179499,1751051455594,-460.0,0.00019726,2]
[368179500,1751051455603,-3198.36,0.00019726,2]
[368179501,1751051455613,-460.0,0.00019726,2]
[368179502,1751051455624,-709.45,0.00019726,2]
[368179503,1751051455633,-915.59,0.00019726,2]
[368179504,1751051455643,-824.17,0.00019726,2]
[368179505,1751051455652,-1482.55,0.00019726,2]
[368179506,1751051455662,-251.456301,0.00019726,2]
[368179507,1751051455671,-460.0,0.00019726,2]
[368179508,1751051455680,-1938.213358,0.00019726,2]
[368179509,1751051455690,-2444.21,0.00019726,2]
[368179510,1751051455699,-151.0,0.00019726,2]
[368179511,1751051455709,-151.0,0.00019726,2]
[368179512,1751051455719,-251.456301,0.00019726,2]
[368179513,1751051455729,-432.06933431,0.00019726,2]
[368179514,1751051455740,-460.0,0.00019726,2]
[368179515,1751051455750,-460.0,0.00019726,2]
[368179516,1751051455760,-460.0,0.00019726,2]
[368179517,1751051455770,-1938.213358,0.00019726,2]
[368179518,1751051455781,-750.01,0.00019726,2]
[368179519,1751051455791,-1048.08,0.00019726,2]
[368179520,1751051455801,-460.0,0.00019726,2]
[368179521,1751051455811,-287.422844,0.00019726,2]
[368179522,1751051455822,-4965.5,0.00019726,2]
[368179523,1751051455834,-460.0,0.00019726,2]
[368179524,1751051455848,-460.0,0.00019726,2]
[368179525,1751051455859,-460.0,0.00019726,2]
[368179526,1751051455870,-460.0,0.00019726,2]
[368179527,1751051455881,-460.0,0.00019726,2]
[368179528,1751051455892,-460.0,0.00019726,2]
[368179529,1751051455903,-460.0,0.00019726,2]
[368179530,1751051455913,-460.0,0.00019726,2]
[368179531,1751051455924,-460.0,0.00019726,2]
[368179532,1751051455935,-460.0,0.00019726,2]
[368179533,1751051455945,-460.0,0.00019726,2]
[368179534,1751051455955,-215.108381,0.00019726,2]
[368179535,1751051455966,-771.0,0.00019726,2]
[368179536,1751051455976,-215.108381,0.00019726,2]
[368179537,1751051455987,-460.0,0.00019726,2]
[368179538,1751051455998,-420.0,0.00019726,2]
[368179539,1751051456008,-215.108381,0.00019726,2]
[368179540,1751051456018,-215.108381,0.00019726,2]
[368179541,1751051456027,-460.0,0.00019726,2]
[368179542,1751051456037,-460.0,0.00019726,2]
[368179543,1751051456047,-168.4469,0.00019726,2]
[368179544,1751051456057,-460.0,0.00019726,2]
[368179545,1751051456066,-168.4469,0.00019726,2]
[368179546,1751051456076,-460.0,0.00019726,2]
[368179547,1751051456087,-460.0,0.00019726,2]
[368179548,1751051456102,-151.0,0.00019726,2]
[368179549,1751051456112,-460.0,0.00019726,2]
[368179550,1751051456122,-168.4469,0.00019726,2]
[368179551,1751051456131,-168.4469,0.00019726,2]
[368179552,1751051456142,-460.0,0.00019726,2]
[368179553,1751051456152,-460.0,0.00019726,2]
[368179554,1751051456161,-1360.53,0.00019726,2]
[368179555,1751051456171,-460.0,0.00019726,2]
[368179556,1751051456180,-460.0,0.00019726,2]
[368179557,1751051456189,-460.0,0.00019726,2]
[368179558,1751051456198,-1173.53,0.00019726,2]
[368179559,1751051456207,-11825.71,0.00019726,2]
[368179560,1751051456216,-460.0,0.00019726,2]
[368179561,1751051456225,-460.0,0.00019726,2]
[368179562,1751051456235,-460.0,0.00019726,2]
[368179563,1751051456244,-460.0,0.00019726,2]
[368179564,1751051456253,-3042.84,0.00019726,2]
[368179565,1751051456263,-460.0,0.00019726,2]
[368179566,1751051456272,-461.60995275,0.00019726,2]
[368179567,1751051456281,-583.9,0.00019726,2]
[368179568,1751051456291,-460.0,0.00019726,2]
[368179569,1751051456301,-460.0,0.00019726,2]
[368179570,1751051456311,-640.44,0.00019726,2]
[368179571,1751051456320,-460.0,0.00019726,2]
[368179572,1751051456329,-670.83,0.00019726,2]
[368179573,1751051456339,-460.0,0.00019726,2]
[368179574,1751051456357,-4999.34,0.00019726,2]
[368179575,1751051456368,-460.0,0.00019726,2]
[368179576,1751051456378,-460.0,0.00019726,2]
[368179577,1751051456388,-381.42864942,0.00019726,2]
[368179578,1751051456398,-907.31,0.00019726,2]
[368179579,1751051456408,-472.10437276,0.00019726,2]
[368179580,1751051456417,-872.48,0.00019726,2]
[368179581,1751051456427,-460.0,0.00019726,2]
[368179582,1751051456436,-460.0,0.00019726,2]
[368179583,1751051456446,-460.0,0.00019726,2]
[368179584,1751051456455,-460.0,0.00019726,2]
[368179585,1751051456464,-460.0,0.00019726,2]
[368179586,1751051456474,-5707.73,0.00019726,2]
[368179587,1751051456487,-1053.94,0.00019726,2]
[368179588,1751051456496,-460.0,0.00019726,2]
[368179589,1751051456507,-500.0,0.00019726,2]
[368179590,1751051456585,-198.0,0.00019726,2]
[368179591,1751051456606,-151.0,0.00019726,2]
[368179592,1751051456616,-151.0,0.00019726,2]
[368179593,1751051456625,-500.0,0.00019726,2]
[368179594,1751051456635,-151.0,0.00019726,2]
[368179595,1751051456645,-151.0,0.00019726,2]
[368179596,1751051456655,-198.0,0.00019726,2]
[368179597,1751051456665,-151.0,0.00019726,2]
[368179598,1751051456675,-151.0,0.00019726,2]
[368179599,1751051456684,-565.16270588,0.00019726,2]
[368179600,1751051456694,-151.0,0.00019726,2]
[368179601,1751051456703,-151.0,0.00019726,2]
[368179602,1751051456712,-604.0,0.00019726,2]
[368179603,1751051456722,-500.0,0.00019726,2]
[368179604,1751051456731,-151.0,0.00019726,2]
[368179605,1751051456740,-151.0,0.00019726,2]
[368179606,1751051456750,-500.0,0.00019738,2]
[368179607,1751051456759,-151.0,0.00019754,2]
[368179608,1751051456769,-151.0,0.00019754,2]
[368179609,1751051456778,-500.0,0.00019754,2]
[368179610,1751051456787,-198.0,0.00019754,2]
[368179611,1751051456797,-198.0,0.00019754,2]
[368179612,1751051456806,-500.0,0.00019754,2]
[368179613,1751051456816,-206.34393344,0.00019754,2]
[368179614,1751051456826,-151.0,0.00019754,2]
[368179615,1751051456835,-619.19986153,0.00019763,2]
[368179616,1751051456846,-500.0,0.00019763,2]
[368179617,1751051456855,-500.0,0.00019763,2]
[368179618,1751051456865,-500.0,0.00019763,2]
[368179619,1751051456874,-473.11563997,0.00019763,2]
[368179620,1751051456884,-500.0,0.00019763,2]
[368179621,1751051456894,-500.0,0.00019763,2]
[368179622,1751051456904,-500.0,0.00019763,2]
[368179623,1751051456913,-784.28167163,0.00019773,2]
[368179624,1751051456923,-151.0,0.00019781,2]
[368179625,1751051456933,-151.0,0.00019781,2]
[368179626,1751051456943,-500.0,0.00019781,2]
[368179627,1751051456952,-198.05545305,0.00019781,2]
[368179628,1751051456962,-151.0,0.000198,2]
[368179629,1751051456971,-151.0,0.00019809,2]
[368179630,1751051456981,-500.0,0.00019809,2]
[368179631,1751051456991,-245.0,0.00019836,2]
[368179632,1751051457001,-500.0,0.00019836,2]
[368179633,1751051457010,-500.0,0.00019863,2]
[368179634,1751051457020,-500.0,0.00019891,2]
[368179635,1751051457030,-6904.98728495,0.000199,2]
[368179636,1751051457039,-4066.92950487,0.000199,2]
[368179637,1751051457049,-340.0,0.00019918,2]
[368179638,1751051457058,-160.0,0.00019936,2]
[368179639,1751051457068,-847.04181546,0.00019936,2]
[368179640,1751051457077,-12562.41216491,0.00019936,2]
[368179641,1751051457087,-160.0,0.00019936,2]
[368179642,1751051457098,-230.26210603,0.00019936,2]
[368179643,1751051457107,-160.0,0.00019936,2]
[368179644,1751051457116,-213.75309343,0.00019936,2]
[368179645,1751051457125,-836.98798914,0.00019936,2]
[368179646,1751051457135,-160.0,0.00019936,2]
[368179647,1751051457145,-214.91804724,0.00019936,2]
[368179648,1751051457155,-160.0,0.00019936,2]
[368179649,1751051457165,-160.0,0.00019936,2]
[368179650,1751051457175,-160.0,0.00019936,2]
[368179651,1751051457185,-160.0,0.00019937,2]
[368179652,1751051457195,-207.4,0.00019938,2]
[368179653,1751051457204,-500.0,0.00019938,2]
[368179654,1751051457213,-500.0,0.00019938,2]
[368179655,1751051457223,-5000.0,0.00019938,2]
[368179656,1751051457231,-500.0,0.00019938,2]
[368179657,1751051457241,-500.0,0.00019938,2]
[368179658,1751051457250,-500.0,0.00019938,2]
[368179659,1751051457260,-500.0,0.00019938,2]
[368179660,1751051457269,-500.0,0.00019938,2]
[368179661,1751051457279,-381.33984163,0.00019938,2]
[368179662,1751051457288,-168.0,0.00019939,2]
[368179663,1751051457298,-151.0,0.00019956,2]
[368179664,1751051457307,-337.808917,0.00019956,2]
[368179665,1751051457317,-337.808917,0.00019956,2]
[368179666,1751051457326,-151.0,0.00019956,2]
[368179667,1751051457335,-1938.213358,0.00019956,2]
[368179668,1751051457346,-1938.213358,0.00019956,2]
[368179669,1751051457355,-674.09471568,0.0001998,2]
[368179670,1751051457364,-7136.4157538,0.0001999,2]
[368179671,1751051457373,-460.0,0.0002,2]
[368179672,1751051457382,-266.03177238,0.0002,2]
[368179673,1751051457391,-165.48,0.0002,2]
[368179674,1751051457400,-460.0,0.0002,2]
[368179675,1751051457409,-515.32,0.0002,2]
[368179676,1751051457418,-460.0,0.0002,2]
[368179677,1751051457427,-460.0,0.0002,2]
[368179678,1751051457436,-460.0,0.0002,2]
[368179679,1751051457445,-460.0,0.0002,2]
[368179680,1751051457454,-460.0,0.0002,2]
[368179681,1751051457463,-460.0,0.0002,2]
[368179682,1751051457472,-587.76,0.0002,2]
[368179683,1751051457485,-460.0,0.0002,2]
[368179684,1751051457494,-460.0,0.0002,2]
[368179685,1751051457503,-460.0,0.0002,2]
[368179686,1751051457512,-500.0,0.0002,2]
[368179687,1751051457522,-288.76,0.0002,2]
[368179688,1751051457531,-552.43,0.0002,2]
[368179689,1751051457541,-460.0,0.0002,2]
[368179690,1751051457550,-345.11785581,0.0002,2]
[368179691,1751051457562,-460.0,0.0002,2]
[368179692,1751051457571,-460.0,0.0002,2]
[368179693,1751051457580,-460.0,0.0002,2]
[368179694,1751051457589,-460.0,0.0002,2]
[368179695,1751051457600,-155.03931805,0.0002,2]
[368179696,1751051457609,-460.0,0.0002,2]
[368179697,1751051457618,-460.0,0.0002,2]
[368179698,1751051457627,-313.05496491,0.0002,2]
[368179699,1751051457636,-151.973634,0.0002,2]
[368179700,1751051457645,-460.0,0.0002,2]
[368179701,1751051457655,-359.18,0.0002,2]
[368179702,1751051457667,-151.0,0.0002,2]
[368179703,1751051457676,-460.0,0.0002,2]
[368179704,1751051457685,-151.0,0.0002,2]
[368179705,1751051457694,-460.0,0.0002,2]
[368179706,1751051457703,-151.0,0.0002,2]
[368179707,1751051457711,-151.0,0.0002,2]
[368179708,1751051457721,-460.0,0.0002,2]
[368179709,1751051457730,-460.0,0.0002,2]
[368179710,1751051457739,-460.0,0.0002,2]
[368179711,1751051457816,-460.0,0.0002,2]
[368179712,1751051457827,-460.0,0.0002,2]
[368179713,1751051457839,-460.0,0.0002,2]
[368179714,1751051457850,-460.0,0.0002,2]
[368179715,1751051457859,-151.0,0.0002,2]
[368179716,1751051457869,-151.0,0.0002,2]
[368179717,1751051457879,-460.0,0.0002,2]
[368179718,1751051457888,-460.0,0.0002,2]
[368179719,1751051457898,-460.0,0.0002,2]
[368179720,1751051457908,-460.0,0.0002,2]
[368179721,1751051457918,-285.38,0.0002,2]
[368179722,1751051457927,-500.0,0.0002,2]
[368179723,1751051457937,-896.19,0.0002,2]
[368179724,1751051457947,-460.0,0.0002,2]
[368179725,1751051457957,-940.28,0.0002,2]
[368179726,1751051457967,-428.88030742,0.0002,2]
[368179727,1751051457977,-439.38909669,0.0002,2]
[368179728,1751051457986,-391.49943484,0.0002,2]
[368179729,1751051457996,-460.0,0.0002,2]
[368179730,1751051458006,-151.0,0.0002,2]
[368179731,1751051458016,-292.23810671,0.0002,2]
[368179732,1751051458025,-460.0,0.0002,2]
[368179733,1751051458035,-460.0,0.0002,2]
[368179734,1751051458044,-562.65,0.0002,2]
[368179735,1751051458054,-460.0,0.0002,2]
[368179736,1751051458063,-460.0,0.0002,2]
[368179737,1751051458073,-460.0,0.0002,2]
[368179738,1751051458082,-460.0,0.0002,2]
[368179739,1751051458092,-460.0,0.0002,2]
[368179740,1751051458102,-1430.56,0.0002,2]
[368179741,1751051458111,-460.0,0.0002,2]
[368179742,1751051458120,-460.0,0.0002,2]
[368179743,1751051458130,-460.0,0.0002,2]
[368179744,1751051458139,-431.71165923,0.0002,2]
[368179745,1751051458148,-460.0,0.0002,2]
[368179746,1751051458158,-460.0,0.0002,2]
[368179747,1751051458167,-347.00363523,0.0002,2]
[368179748,1751051458176,-467.98768087,0.0002,2]
[368179749,1751051458186,-460.0,0.0002,2]
[368179750,1751051458195,-244.156814,0.0002,2]
[368179751,1751051458204,-244.156814,0.0002,2]
[368179752,1751051458213,-151.0,0.0002,2]
[368179753,1751051458223,-460.0,0.0002,2]
[368179754,1751051458233,-525.51,0.0002,2]
[368179755,1751051458244,-151.0,0.0002,2]
[368179756,1751051458254,-460.0,0.0002,2]
[368179757,1751051458263,-460.0,0.0002,2]
[368179758,1751051458273,-460.0,0.0002,2]
[368179759,1751051458283,-460.0,0.0002,2]
[368179760,1751051458294,-460.0,0.0002,2]
[368179761,1751051458304,-460.0,0.0002,2]
[368179762,1751051458314,-460.0,0.0002,2]
[368179763,1751051458324,-460.0,0.0002,2]
[368179764,1751051458335,-460.0,0.0002,2]
[368179765,1751051458347,-460.0,0.0002,2]
[368179766,1751051458357,-460.0,0.0002,2]
[368179767,1751051458371,-460.0,0.0002,2]
[368179768,1751051458394,-460.0,0.0002,2]
[368179769,1751051458413,-460.0,0.0002,2]
[368179770,1751051458432,-633.77,0.0002,2]
[368179771,1751051458452,-151.0,0.0002,2]
[368179772,1751051458470,-460.0,0.0002,2]
[368179773,1751051458490,-272.692667,0.0002,2]
[368179774,1751051458507,-460.0,0.0002,2]
[368179775,1751051458521,-460.0,0.0002,2]
[368179776,1751051458540,-460.0,0.0002,2]
[368179777,1751051458560,-151.0,0.0002,2]
[368179778,1751051458576,-272.692667,0.0002,2]
[368179779,1751051458588,-460.0,0.0002,2]
[368179780,1751051458608,-460.0,0.0002,2]
[368179781,1751051458622,-460.0,0.0002,2]
[368179782,1751051458638,-460.0,0.0002,2]
[368179783,1751051458655,-460.0,0.0002,2]
[368179784,1751051458670,-320.860355,0.0002,2]
[368179785,1751051458684,-460.0,0.0002,2]
[368179786,1751051458698,-460.0,0.0002,2]
[368179787,1751051458712,-460.0,0.0002,2]
[368179788,1751051458726,-460.0,0.0002,2]
[368179789,1751051458739,-460.0,0.0002,2]
[368179790,1751051458754,-460.0,0.0002,2]
[368179791,1751051458767,-460.0,0.0002,2]
[368179792,1751051458781,-460.0,0.0002,2]
[368179793,1751051458795,-460.0,0.0002,2]
[368179794,1751051458809,-460.0,0.0002,2]
[368179795,1751051458825,-460.0,0.0002,2]
[368179796,1751051458839,-460.0,0.0002,2]
[368179797,1751051458854,-151.0,0.0002,2]
[368179798,1751051458868,-460.0,0.0002,2]
[368179799,1751051458884,-885.83,0.0002,2]
[368179800,1751051458898,-460.0,0.0002,2]
[368179801,1751051458913,-460.0,0.0002,2]
[368179802,1751051458928,-460.0,0.0002,2]
[368179803,1751051458942,-151.0,0.0002,2]
[368179804,1751051458957,-736.88,0.0002,2]
[368179805,1751051458973,-460.0,0.0002,2]
[368179806,1751051458988,-460.0,0.0002,2]
[368179807,1751051459002,-460.0,0.0002,2]
[368179808,1751051459017,-460.0,0.0002,2]
[368179809,1751051459031,-460.0,0.0002,2]
[368179810,1751051459046,-466.79,0.0002,2]
[368179811,1751051459060,-460.0,0.0002,2]
[368179812,1751051459075,-460.0,0.0002,2]
[368179813,1751051459089,-151.0,0.0002,2]
[368179814,1751051459105,-151.0,0.0002,2]
[368179815,1751051459119,-460.0,0.0002,2]
[368179816,1751051459134,-151.0,0.0002,2]
[368179817,1751051459150,-460.0,0.0002,2]
[368179818,1751051459165,-469.34,0.0002,2]
[368179819,1751051459181,-460.0,0.0002,2]
[368179820,1751051459196,-460.0,0.0002,2]
[368179821,1751051459210,-460.0,0.0002,2]
[368179822,1751051459314,-460.0,0.0002,2]
[368179823,1751051459343,-460.0,0.0002,2]
[368179824,1751051459353,-460.0,0.0002,2]
[368179825,1751051459363,-191.043374,0.0002,2]
[368179826,1751051459372,-515.25,0.0002,2]
[368179827,1751051459381,-191.043374,0.0002,2]
[368179828,1751051459390,-1048.76,0.0002,2]
[368179829,1751051459399,-151.0,0.0002,2]
[368179830,1751051459409,-460.0,0.0002,2]
[368179831,1751051459418,-268.910966,0.0002,2]
[368179832,1751051459428,-460.0,0.0002,2]
[368179833,1751051459437,-151.0,0.0002,2]
[368179834,1751051459446,-466.81285141,0.0002,2]
[368179835,1751051459455,-460.0,0.0002,2]
[368179836,1751051459465,-460.0,0.0002,2]
[368179837,1751051459474,-460.0,0.0002,2]
[368179838,1751051459485,-268.910966,0.0002,2]
[368179839,1751051459494,-460.0,0.0002,2]
[368179840,1751051459503,-151.0,0.0002,2]
[368179841,1751051459513,-151.0,0.0002,2]
[368179842,1751051459522,-505.07161603,0.0002,2]
[368179843,1751051459532,-464.22250138,0.0002,2]
[368179844,1751051459542,-151.0,0.0002,2]
[368179845,1751051459550,-460.0,0.0002,2]
[368179846,1751051459560,-460.0,0.0002,2]
[368179847,1751051459569,-460.0,0.0002,2]
[368179848,1751051459579,-460.0,0.0002,2]
[368179849,1751051459588,-460.0,0.0002,2]
[368179850,1751051459599,-460.0,0.0002,2]
[368179851,1751051459609,-460.0,0.0002,2]
[368179852,1751051459619,-989.33,0.0002,2]
[368179853,1751051459628,-460.0,0.0002,2]
[368179854,1751051459637,-460.0,0.0002,2]
[368179855,1751051459647,-460.0,0.0002,2]
[368179856,1751051459657,-460.0,0.0002,2]
[368179857,1751051459667,-151.0,0.0002,2]
[368179858,1751051459677,-151.0,0.0002,2]
[368179859,1751051459687,-151.0,0.0002,2]
[368179860,1751051459696,-460.0,0.0002,2]
[368179861,1751051459705,-460.0,0.0002,2]
[368179862,1751051459714,-151.0,0.0002,2]
[368179863,1751051459723,-460.0,0.0002,2]
[368179864,1751051459733,-460.0,0.0002,2]
[368179865,1751051459742,-460.0,0.0002,2]
[368179866,1751051459752,-151.0,0.0002,2]
[368179867,1751051459761,-460.0,0.0002,2]
[368179868,1751051459770,-151.0,0.0002,2]
[368179869,1751051459779,-460.0,0.0002,2]
[368179870,1751051459788,-460.0,0.0002,2]
[368179871,1751051459798,-460.0,0.0002,2]
[368179872,1751051459807,-460.0,0.0002,2]
[368179873,1751051459816,-160.0,0.0002,3]
[368179874,1751051459825,-461.50220711,0.0002,2]
[368179875,1751051459835,-460.0,0.0002,2]
[368179876,1751051459844,-797.49,0.0002,2]
[368179877,1751051459857,-790.98,0.0002,2]
[368179878,1751051459867,-460.0,0.0002,2]
[368179879,1751051459877,-467.1087756,0.0002,2]
[368179880,1751051459887,-460.0,0.0002,2]
[368179881,1751051459898,-460.0,0.0002,2]
[368179882,1751051459908,-151.0,0.0002,2]
[368179883,1751051459917,-1185.28,0.0002,2]
[368179884,1751051459927,-460.0,0.0002,2]
[368179885,1751051459936,-460.0,0.0002,2]
[368179886,1751051459946,-500.0,0.0002,2]
[368179887,1751051459955,-1047.76,0.0002,2]
[368179888,1751051459965,-1638.87,0.0002,2]
[368179889,1751051459974,-460.0,0.0002,2]
[368179890,1751051459984,-1443.51,0.0002,2]
[368179891,1751051459994,-2651.75,0.0002,2]
[368179892,1751051460003,-617.15,0.0002,2]
[368179893,1751051460013,-624.78,0.0002,2]
[368179894,1751051460023,-151.0,0.0002,2]
[368179895,1751051460033,-794.36,0.0002,2]
[368179896,1751051460043,-460.0,0.0002,2]
[368179897,1751051460053,-460.0,0.0002,2]
[368179898,1751051460064,-460.0,0.0002,2]
[368179899,1751051460074,-460.0,0.0002,2]
[368179900,1751051460083,-151.0,0.0002,2]
[368179901,1751051460093,-460.0,0.0002,2]
[368179902,1751051460104,-460.0,0.0002,2]
[368179903,1751051460113,-460.0,0.0002,2]
[368179904,1751051460123,-759.92,0.0002,2]
[368179905,1751051460132,-460.0,0.0002,2]
[368179906,1751051460141,-460.0,0.0002,2]
[368179907,1751051460152,-261.625174,0.0002,2]
[368179908,1751051460161,-460.0,0.0002,2]
[368179909,1751051460171,-5876.3,0.0002,2]
[368179910,1751051460180,-460.0,0.0002,2]
[368179911,1751051460189,-261.625174,0.0002,2]
[368179912,1751051460198,-460.0,0.0002,2]
[368179913,1751051460207,-690.27,0.0002,2]
[368179914,1751051460217,-460.0,0.0002,2]
[368179915,1751051460226,-751.5,0.0002,2]
[368179916,1751051460235,-460.0,0.0002,2]
[368179917,1751051460244,-460.0,0.0002,2]
[368179918,1751051460253,-8165.44,0.0002,2]
[368179919,1751051460263,-460.0,0.0002,2]
[368179920,1751051460272,-4917.82,0.0002,2]
[368179921,1751051460281,-460.0,0.0002,2]
[368179922,1751051460290,-460.0,0.0002,2]
[368179923,1751051460300,-460.0,0.0002,2]
[368179924,1751051460309,-557.20707106,0.0002,2]
[368179925,1751051460319,-460.0,0.0002,2]
[368179926,1751051460328,-2460.7,0.0002,2]
[368179927,1751051460338,-2172.27,0.0002,2]
[368179928,1751051460347,-460.0,0.0002,2]
[368179929,1751051460356,-460.0,0.0002,2]
[368179930,1751051460365,-5152.74,0.0002,2]
[368179931,1751051460375,-460.0,0.0002,2]
[368179932,1751051460384,-460.0,0.0002,2]
[368179933,1751051460393,-2353.85,0.0002,2]
[368179934,1751051460402,-460.0,0.0002,2]